fUSD/lending_fUSD_20241221
["ID","MTS","AMOUNT","RATE_DAILY","PERIOD"]
[346209584,1734775893895,-3406.92,0.00020273,2]
[346209585,1734775893905,-3714.4,0.00020273,2]
[346209586,1734775893914,-551.67,0.00020273,2]
[346209587,1734775893923,-1872.87,0.00020273,2]
[346209588,1734775893934,-1524.84,0.00020273,2]
[346209589,1734775893943,-1092.92,0.00020273,2]
[346209590,1734775893953,-500.0,0.00020273,2]
[346209591,1734775893963,-3322.3,0.00020273,2]
[346209592,1734775893972,-500.0,0.00020273,2]
[346209593,1734775893982,-151.0,0.00020273,2]
[346209594,1734775893992,-500.0,0.00020273,2]
[346209595,1734775894001,-500.0,0.00020273,2]
[346209596,1734775894012,-151.0,0.00020273,2]
[346209597,1734775894022,-818.84367,0.00020273,2]
[346209598,1734775894032,-500.0,0.00020273,2]
[346209599,1734775894049,-500.0,0.00020273,2]
[346209600,1734775894059,-500.0,0.00020273,2]
[346209601,1734775894068,-500.0,0.00020273,2]
[346209602,1734775894079,-2695.44,0.00020273,2]
[346209603,1734775894090,-151.0,0.00020273,2]
[346209604,1734775894100,-818.84367,0.00020273,2]
[346209605,1734775894110,-572.66,0.00020273,2]
[346209606,1734775894121,-500.0,0.00020273,2]
[346209607,1734775894130,-500.0,0.00020273,2]
[346209608,1734775894140,-883.25,0.00020273,2]
[346209609,1734775894149,-500.0,0.00020273,2]
[346209610,1734775894159,-947.22,0.00020273,2]
[346209611,1734775894168,-500.0,0.00020273,2]
[346209612,1734775894178,-2084.85,0.00020273,2]
[346209613,1734775894188,-2249.96,0.00020273,2]
[346209614,1734775894198,-1472.03,0.00020273,2]
[346209615,1734775894208,-500.0,0.00020273,2]
[346209616,1734775894218,-1123.42,0.00020273,2]
[346209617,1734775894228,-500.0,0.00020273,2]
[346209618,1734775894239,-500.0,0.00020273,2]
[346209619,1734775894249,-5683.01,0.00020273,2]
[346209620,1734775894258,-2186.91,0.00020273,2]
[346209621,1734775894268,-500.0,0.00020273,2]
[346209622,1734775894280,-2620.07,0.00020273,2]
[346209623,1734775894290,-500.0,0.00020273,2]
[346209624,1734775894299,-4201.22,0.00020273,2]
[346209625,1734775894310,-820.18,0.00020273,2]
[346209626,1734775894321,-5057.25,0.00020273,2]
[346209627,1734775894331,-500.0,0.00020273,2]
[346209628,1734775894342,-10381.66,0.00020273,2]
[346209629,1734775894352,-4650.6,0.00020273,2]
[346209630,1734775894362,-501.22814399,0.00020273,2]
[346209631,1734775894372,-561.54,0.00020273,2]
[346209632,1734775894382,-1183.78,0.00020273,2]
[346209633,1734775894392,-502.37288628,0.00020273,2]
[346209634,1734775894402,-500.0,0.00020273,2]
[346209635,1734775894412,-500.0,0.00020273,2]
[346209636,1734775894422,-525.46,0.00020273,2]
[346209637,1734775894432,-3296.73,0.00020273,2]
[346209638,1734775894442,-3947.52,0.00020273,2]
[346209639,1734775894452,-500.0,0.00020273,2]
[346209640,1734775894462,-333.89104236,0.00020273,2]
[346209641,1734775894472,-3535.33,0.00020273,2]
[346209642,1734775894482,-500.0,0.00020273,2]
[346209643,1734775894492,-6490.03,0.00020273,2]
[346209644,1734775894502,-500.0,0.00020273,2]
[346209645,1734775894512,-500.0,0.00020273,2]
[346209646,1734775894522,-500.0,0.00020273,2]
[346209647,1734775894534,-1083.48,0.00020273,2]
[346209648,1734775894544,-845.6,0.00020273,2]
[346209649,1734775894554,-500.0,0.00020273,2]
[346209650,1734775894563,-928.79,0.00020273,2]
[346209651,1734775894573,-500.0,0.00020273,2]
[346209652,1734775894583,-3391.23,0.00020273,2]
[346209653,1734775894593,-1144.7,0.00020273,2]
[346209654,1734775894603,-500.0,0.00020273,2]
[346209655,1734775894613,-500.0,0.00020273,2]
[346209656,1734775894622,-5742.88,0.00020273,2]
[346209657,1734775894632,-2977.76,0.00020273,2]
[346209658,1734775894642,-5965.75,0.00020273,2]
[346209659,1734775894651,-500.0,0.00020273,2]
[346209660,1734775894660,-500.0,0.00020273,2]
[346209661,1734775894670,-1382.72,0.00020273,2]
[346209662,1734775894679,-500.0,0.00020273,2]
[346209663,1734775894689,-2377.95,0.00020273,2]
[346209664,1734775894699,-500.0,0.00020273,2]
[346209665,1734775894708,-7551.88,0.00020273,2]
[346209666,1734775894717,-4746.58,0.00020273,2]
[346209667,1734775894728,-2769.64,0.00020273,2]
[346209668,1734775894738,-500.0,0.00020273,2]
[346209669,1734775894747,-151.0,0.00020273,2]
[346209670,1734775894757,-1797.59,0.00020273,2]
[346209671,1734775894767,-764.69,0.00020273,2]
[346209672,1734775894779,-500.0,0.00020273,2]
[346209673,1734775894788,-500.0,0.00020273,2]
[346209674,1734775894798,-1876.28,0.00020273,2]
[346209675,1734775894807,-11203.57,0.00020273,2]
[346209676,1734775894816,-234.017806,0.00020273,2]
[346209677,1734775894826,-500.0,0.00020273,2]
[346209678,1734775894835,-500.0,0.00020273,2]
[346209679,1734775894845,-500.0,0.00020273,2]
[346209680,1734775894854,-500.0,0.00020273,2]
[346209681,1734775894864,-1762.7,0.00020273,2]
[346209682,1734775894873,-3768.97,0.00020273,2]
[346209683,1734775894883,-1397.67,0.00020273,2]
[346209684,1734775894893,-3624.71,0.00020273,2]
[346209685,1734775894902,-500.0,0.00020273,2]
[346209686,1734775894912,-500.0,0.00020273,2]
[346209687,1734775894921,-20949.33,0.00020273,2]
[346209688,1734775894931,-151.0,0.00020273,2]
[346209689,1734775894940,-150.0,0.00020273,2]
[346209690,1734775894950,-500.0,0.00020273,2]
[346209691,1734775894959,-500.0,0.00020273,2]
[346209692,1734775894968,-151.0,0.00020273,2]
[346209693,1734775894978,-500.0,0.00020273,2]
[346209694,1734775894987,-500.0,0.00020273,2]
[346209695,1734775894996,-500.0,0.00020273,2]
[346209696,1734775895005,-500.0,0.00020273,2]
[346209697,1734775895015,-1049.07,0.00020273,2]
[346209698,1734775895024,-3136.63,0.00020273,2]
[346209699,1734775895034,-1027.9,0.00020273,2]
[346209700,1734775895046,-798.1,0.00020273,2]
[346209701,1734775895056,-500.0,0.00020273,2]
[346209702,1734775895066,-6628.04,0.00020273,2]
[346209703,1734775895075,-660.71,0.00020273,2]
[346209704,1734775895084,-500.0,0.00020273,2]
[346209705,1734775895094,-154.203883,0.00020273,2]
[346209706,1734775895103,-500.0,0.00020273,2]
[346209707,1734775895112,-500.0,0.00020273,2]
[346209708,1734775895124,-500.0,0.00020273,2]
[346209709,1734775895133,-500.0,0.00020273,2]
[346209710,1734775895142,-151.0,0.00020273,2]
[346209711,1734775895151,-500.0,0.00020273,2]
[346209712,1734775895161,-2498.1,0.00020273,2]
[346209713,1734775895170,-500.0,0.00020273,2]
[346209714,1734775895179,-500.0,0.00020273,2]
[346209715,1734775895188,-16473.89,0.00020273,2]
[346209716,1734775895197,-961.49,0.00020273,2]
[346209717,1734775895207,-151.0,0.00020273,2]
[346209718,1734775895216,-576.11,0.00020273,2]
[346209719,1734775895226,-682.72,0.00020273,2]
[346209720,1734775895235,-500.0,0.00020273,2]
[346209721,1734775895245,-947.84,0.00020273,2]
[346209722,1734775895254,-608.13,0.00020273,2]
[346209723,1734775895263,-2207.4,0.00020273,2]
[346209724,1734775895272,-500.0,0.00020273,2]
[346209725,1734775895282,-500.0,0.00020273,2]
[346209726,1734775895292,-616.43,0.00020273,2]
[346209727,1734775895301,-641.08,0.00020273,2]
[346209728,1734775895310,-703.62,0.00020273,2]
[346209729,1734775895320,-819.35,0.00020273,2]
[346209730,1734775895330,-1708.42,0.00020273,2]
[346209731,1734775895339,-500.0,0.00020273,2]
[346209732,1734775895349,-827.89,0.00020273,2]
[346209733,1734775895359,-500.0,0.00020273,2]
[346209734,1734775895369,-1594.45,0.00020273,2]
[346209735,1734775895379,-877.93,0.00020273,2]
[346209736,1734775895389,-7414.834697,0.00020273,2]
[346209737,1734775895398,-1310.13,0.00020273,2]
[346209738,1734775895409,-500.0,0.00020273,2]
[346209739,1734775895418,-500.0,0.00020273,2]
[346209740,1734775895428,-663.97,0.00020273,2]
[346209741,1734775895437,-7414.834697,0.00020273,2]
[346209742,1734775895447,-500.0,0.00020273,2]
[346209743,1734775895456,-2854.57,0.00020273,2]
[346209744,1734775895631,-500.0,0.00020273,2]
[346209745,1734775895640,-500.0,0.00020273,2]
[346209746,1734775895650,-150.0,0.00020303,4]
[346209747,1734775895660,-186.38008742,0.00020341,2]
[346209748,1734775895669,-153.0,0.00020372,2]
[346209749,1734775895679,-153.0,0.00020372,2]
[346209750,1734775895689,-153.0,0.00020372,2]
[346209751,1734775895698,-153.0,0.00020372,2]
[346209752,1734775895708,-150.0,0.00020391,4]
[346209753,1734775895717,-718.98,0.0002041,2]
[346209754,1734775895727,-150.0,0.00020435,4]
[346209755,1734775895736,-168.34,0.00020451,2]
[346209756,1734775895745,-150.0,0.00020478,4]
[346209757,1734775895755,-150.0,0.00020508,4]
[346209758,1734775895764,-190.26,0.00020542,2]
[346209759,1734775895774,-500.0,0.00020546,2]
[346209760,1734775895785,-500.0,0.00020546,2]
[346209761,1734775895794,-500.0,0.00020546,2]
[346209762,1734775895804,-1703.59,0.00020546,2]
[346209763,1734775895814,-1703.59,0.00020546,2]
[346209764,1734775895823,-1703.59,0.00020546,2]
[346209765,1734775895833,-300.0,0.00020546,2]
[346209766,1734775895842,-300.0,0.00020546,2]
[346209767,1734775895852,-1315.92517,0.00020547,2]
[346209768,1734775895861,-2060.745603,0.00020547,2]
[346209769,1734775895870,-155.516392,0.00020547,2]
[346209770,1734775895879,-500.0,0.00020547,2]
[346209771,1734775895888,-178.788198,0.00020547,2]
[346209772,1734775895897,-151.724004,0.00020547,2]
[346209773,1734775895906,-500.0,0.00020547,2]
[346209774,1734775895915,-151.0,0.00020547,2]
[346209775,1734775895925,-500.0,0.00020547,2]
[346209776,1734775895934,-500.0,0.00020547,2]
[346209777,1734775895943,-500.0,0.00020547,2]
[346209778,1734775895952,-151.0,0.00020547,2]
[346209779,1734775895961,-151.0,0.00020547,2]
[346209780,1734775895971,-151.305028,0.00020547,2]
[346209781,1734775895980,-500.0,0.00020547,2]
[346209782,1734775895989,-151.0,0.00020547,2]
[346209783,1734775895999,-500.0,0.00020547,2]
[346209784,1734775896009,-500.0,0.00020547,2]
[346209785,1734775896018,-500.0,0.00020547,2]
[346209786,1734775896028,-500.0,0.00020547,2]
[346209787,1734775896037,-500.0,0.00020547,2]
[346209788,1734775896050,-178.51097994,0.00020547,2]
[346209789,1734775896059,-500.0,0.00020547,2]
[346209790,1734775896068,-477.79678199,0.00020547,2]
[346209791,1734775896078,-726.79,0.00020547,2]
[346209792,1734775896088,-532.67,0.00020547,2]
[346209793,1734775896098,-500.0,0.00020547,2]
[346209794,1734775896107,-500.0,0.00020547,2]
[346209795,1734775896117,-694.79,0.00020547,2]
[346209796,1734775896127,-545.1,0.00020547,2]
[346209797,1734775896135,-500.0,0.00020547,2]
[346209798,1734775896144,-500.0,0.00020547,2]
[346209799,1734775896153,-412.53905247,0.00020547,2]
[346209800,1734775896162,-500.0,0.00020547,2]
[346209801,1734775896171,-500.0,0.00020547,2]
[346209802,1734775896180,-500.0,0.00020547,2]
[346209803,1734775896189,-500.0,0.00020547,2]
[346209804,1734775896198,-500.0,0.00020547,2]
[346209805,1734775896207,-725.56,0.00020547,2]
[346209806,1734775896215,-500.0,0.00020547,2]
[346209807,1734775896227,-500.0,0.00020547,2]
[346209808,1734775896236,-628.09,0.00020547,2]
[346209809,1734775896247,-500.0,0.00020547,2]
[346209810,1734775896256,-648.77791632,0.00020547,2]
[346209811,1734775896265,-500.0,0.00020547,2]
[346209812,1734775896273,-500.0,0.00020547,2]
[346209813,1734775896283,-500.0,0.00020547,2]
[346209814,1734775896292,-709.26,0.00020547,2]
[346209815,1734775896301,-500.0,0.00020547,2]
[346209816,1734775896310,-500.0,0.00020547,2]
[346209817,1734775896319,-709.06,0.00020547,2]
[346209818,1734775896328,-500.0,0.00020547,2]
[346209819,1734775896338,-500.0,0.00020547,2]
[346209820,1734775896347,-832.53,0.00020547,2]
[346209821,1734775896356,-500.0,0.00020547,2]
[346209822,1734775896366,-500.0,0.00020547,2]
[346209823,1734775896375,-500.0,0.00020547,2]
[346209824,1734775896385,-500.0,0.00020547,2]
[346209825,1734775896394,-500.0,0.00020547,2]
[346209826,1734775896404,-500.0,0.00020547,2]
[346209827,1734775896413,-500.0,0.00020547,2]
[346209828,1734775896422,-504.8836748,0.00020547,2]
[346209829,1734775896432,-500.0,0.00020547,2]
[346209830,1734775896441,-500.0,0.00020547,2]
[346209831,1734775896451,-500.0,0.00020547,2]
[346209832,1734775896460,-500.0,0.00020547,2]
[346209833,1734775896470,-500.0,0.00020547,2]
[346209834,1734775896480,-500.0,0.00020547,2]
[346209835,1734775896490,-500.0,0.00020547,2]
[346209836,1734775896500,-500.0,0.00020547,2]
[346209837,1734775896509,-500.0,0.00020547,2]
[346209838,1734775896519,-500.0,0.00020547,2]
[346209839,1734775896530,-500.0,0.00020547,2]
[346209840,1734775896539,-500.0,0.00020547,2]
[346209841,1734775896550,-500.0,0.00020547,2]
[346209842,1734775896559,-424.54722328,0.00020547,2]
[346209843,1734775896568,-500.0,0.00020547,2]
[346209844,1734775896577,-500.0,0.00020547,2]
[346209845,1734775896587,-502.6699634,0.00020547,2]
[346209846,1734775896596,-500.0,0.00020547,2]
[346209847,1734775896605,-500.0,0.00020547,2]
[346209848,1734775896615,-500.0,0.00020547,2]
[346209849,1734775896625,-500.0,0.00020547,2]
[346209850,1734775896634,-500.0,0.00020547,2]
[346209851,1734775896644,-500.0,0.00020547,2]
[346209852,1734775896653,-500.0,0.00020547,2]
[346209853,1734775896663,-500.0,0.00020547,2]
[346209854,1734775896672,-3009.64,0.00020547,2]
[346209855,1734775896681,-1290.83,0.00020547,2]
[346209856,1734775896691,-500.0,0.00020547,2]
[346209857,1734775896700,-500.0,0.00020547,2]
[346209858,1734775896709,-1763.28,0.00020547,2]
[346209859,1734775896719,-1110.5,0.00020547,2]
[346209860,1734775896729,-500.0,0.00020547,2]
[346209861,1734775896739,-500.0,0.00020547,2]
[346209862,1734775896748,-392.41419443,0.00020547,2]
[346209863,1734775896759,-500.0,0.00020547,2]
[346209864,1734775896769,-554.22,0.00020547,2]
[346209865,1734775896779,-500.0,0.00020547,2]
[346209866,1734775896789,-500.0,0.00020547,2]
[346209867,1734775896798,-500.0,0.00020547,2]
[346209868,1734775896808,-1310.29,0.00020547,2]
[346209869,1734775896818,-500.0,0.00020547,2]
[346209870,1734775896828,-500.0,0.00020547,2]
[346209871,1734775896839,-500.0,0.00020547,2]
[346209872,1734775896850,-782.42,0.00020547,2]
[346209873,1734775896860,-500.0,0.00020547,2]
[346209874,1734775896870,-500.0,0.00020547,2]
[346209875,1734775896880,-500.0,0.00020547,2]
[346209876,1734775896889,-500.0,0.00020547,2]
[346209877,1734775896899,-500.0,0.00020547,2]
[346209878,1734775896909,-500.0,0.00020547,2]
[346209879,1734775896918,-500.0,0.00020547,2]
[346209880,1734775896928,-500.0,0.00020547,2]
[346209881,1734775896937,-500.0,0.00020547,2]
[346209882,1734775896947,-500.0,0.00020547,2]
[346209883,1734775896956,-1344.59,0.00020547,2]
[346209884,1734775896965,-500.0,0.00020547,2]
[346209885,1734775896975,-500.0,0.00020547,2]
[346209886,1734775896985,-500.0,0.00020547,2]
[346209887,1734775896994,-500.0,0.00020547,2]
[346209888,1734775897004,-500.0,0.00020547,2]
[346209889,1734775897013,-500.0,0.00020547,2]
[346209890,1734775897023,-500.0,0.00020547,2]
[346209891,1734775897036,-500.0,0.00020547,2]
[346209892,1734775897049,-500.0,0.00020547,2]
[346209893,1734775897059,-997.25,0.00020547,2]
[346209894,1734775897068,-500.0,0.00020547,2]
[346209895,1734775897078,-681.25,0.00020547,2]
[346209896,1734775897088,-2209.2,0.00020547,2]
[346209897,1734775897098,-600.53,0.00020547,2]
[346209898,1734775897107,-500.0,0.00020547,2]
[346209899,1734775897117,-500.0,0.00020547,2]
[346209900,1734775897129,-500.0,0.00020547,2]
[346209901,1734775897138,-500.0,0.00020547,2]
[346209902,1734775897148,-500.0,0.00020547,2]
[346209903,1734775897157,-1052.88,0.00020547,2]
[346209904,1734775897167,-500.0,0.00020547,2]
[346209905,1734775897177,-503.53250357,0.00020547,2]
[346209906,1734775897186,-510.15649657,0.00020547,2]
[346209907,1734775897196,-500.0,0.00020547,2]
[346209908,1734775897206,-500.0,0.00020547,2]
[346209909,1734775897215,-500.0,0.00020547,2]
[346209910,1734775897225,-1457.83,0.00020547,2]
[346209911,1734775897234,-500.0,0.00020547,2]
[346209912,1734775897244,-828.45,0.00020547,2]
[346209913,1734775897254,-500.0,0.00020547,2]
[346209914,1734775897264,-1146.14,0.00020547,2]
[346209915,1734775897274,-500.0,0.00020547,2]
[346209916,1734775897285,-500.0,0.00020547,2]
[346209917,1734775897294,-347.96455661,0.00020547,2]
[346209918,1734775897304,-1250.39,0.00020547,2]
[346209919,1734775897313,-500.0,0.00020547,2]
[346209920,1734775897323,-500.0,0.00020547,2]
[346209921,1734775897333,-222.153269,0.00020547,2]
[346209922,1734775897342,-500.0,0.00020547,2]
[346209923,1734775897352,-500.0,0.00020547,2]
[346209924,1734775897362,-500.0,0.00020547,2]
[346209925,1734775897372,-1419.2,0.00020547,2]
[346209926,1734775897382,-758.56,0.00020547,2]
[346209927,1734775897391,-500.0,0.00020547,2]
[346209928,1734775897400,-500.0,0.00020547,2]
[346209929,1734775897410,-639.25,0.00020547,2]
[346209930,1734775897419,-635.85,0.00020547,2]
[346209931,1734775897429,-500.0,0.00020547,2]
[346209932,1734775897438,-500.0,0.00020547,2]
[346209933,1734775897448,-500.0,0.00020547,2]
[346209934,1734775897457,-756.25,0.00020547,2]
[346209935,1734775897467,-656.52,0.00020547,2]
[346209936,1734775897476,-500.0,0.00020547,2]
[346209937,1734775897485,-500.0,0.00020547,2]
[346209938,1734775897495,-500.0,0.00020547,2]
[346209939,1734775897505,-500.0,0.00020547,2]
[346209940,1734775897514,-500.0,0.00020547,2]
[346209941,1734775897523,-500.0,0.00020547,2]
[346209942,1734775897534,-679.69,0.00020547,2]
[346209943,1734775897543,-514.13768708,0.00020547,2]
[346209944,1734775897553,-694.71,0.00020547,2]
[346209945,1734775897562,-500.0,0.00020547,2]
[346209946,1734775897571,-500.0,0.00020547,2]
[346209947,1734775897581,-500.0,0.00020547,2]
[346209948,1734775897590,-500.0,0.00020547,2]
[346209949,1734775897599,-696.96,0.00020547,2]
[346209950,1734775897609,-500.0,0.00020547,2]
[346209951,1734775897618,-500.0,0.00020547,2]
[346209952,1734775897628,-529.72,0.00020547,2]
[346209953,1734775897637,-500.0,0.00020547,2]
[346209954,1734775897647,-500.0,0.00020547,2]
[346209955,1734775897656,-506.053557,0.00020547,2]
[346209956,1734775897665,-500.0,0.00020547,2]
[346209957,1734775897675,-500.0,0.00020547,2]
[346209958,1734775897684,-1305.68,0.00020547,2]
[346209959,1734775897693,-845.31,0.00020547,2]
[346209960,1734775897702,-853.8,0.00020547,2]
[346209961,1734775897712,-1048.63,0.00020547,2]
[346209962,1734775897721,-1477.89,0.00020547,2]
[346209963,1734775897730,-500.0,0.00020547,2]
[346209964,1734775897739,-500.0,0.00020547,2]
[346209965,1734775897748,-1084.07,0.00020547,2]
[346209966,1734775897757,-500.0,0.00020547,2]
[346209967,1734775897767,-788.48,0.00020547,2]
[346209968,1734775897776,-500.0,0.00020547,2]
[346209969,1734775897786,-743.94,0.00020547,2]
[346209970,1734775897795,-500.0,0.00020547,2]
[346209971,1734775897805,-1099.89,0.00020547,2]
[346209972,1734775897814,-500.0,0.00020547,2]
[346209973,1734775897823,-500.0,0.00020547,2]
[346209974,1734775897833,-500.0,0.00020547,2]
[346209975,1734775897842,-500.0,0.00020547,2]
[346209976,1734775897851,-500.0,0.00020547,2]
[346209977,1734775897861,-780.67,0.00020547,2]
[346209978,1734775897871,-500.0,0.00020547,2]
[346209979,1734775897880,-500.0,0.00020547,2]
[346209980,1734775897890,-500.0,0.00020547,2]
[346209981,1734775897899,-500.0,0.00020547,2]
[346209982,1734775897908,-1161.79,0.00020547,2]
[346209983,1734775897918,-532.5,0.00020547,2]
[346209984,1734775897927,-523.03348212,0.00020547,2]
[346209985,1734775897936,-500.0,0.00020547,2]
[346209986,1734775897945,-515.71,0.00020547,2]
[346209987,1734775897954,-500.0,0.00020547,2]
[346209988,1734775897964,-707.57,0.00020547,2]
[346209989,1734775897974,-500.0,0.00020547,2]
[346209990,1734775897983,-500.0,0.00020547,2]
[346209991,1734775897994,-549.28,0.00020547,2]
[346209992,1734775898003,-500.0,0.00020547,2]
[346209993,1734775898013,-500.0,0.00020547,2]
[346209994,1734775898022,-500.0,0.00020547,2]
[346209995,1734775898033,-500.0,0.00020547,2]
[346209996,1734775898046,-514.37,0.00020547,2]
[346209997,1734775898055,-612.84,0.00020547,2]
[346209998,1734775898065,-639.17,0.00020547,2]
[346209999,1734775898075,-500.0,0.00020547,2]
[346210000,1734775898084,-500.0,0.00020547,2]
[346210001,1734775898095,-500.0,0.00020547,2]
[346210002,1734775898104,-500.0,0.00020547,2]
[346210003,1734775898114,-500.0,0.00020547,2]
[346210004,1734775898124,-721.82,0.00020547,2]
[346210005,1734775898134,-500.0,0.00020547,2]
[346210006,1734775898144,-500.0,0.00020547,2]
[346210007,1734775898153,-500.0,0.00020547,2]
[346210008,1734775898163,-500.0,0.00020547,2]
[346210009,1734775898173,-1097.82,0.00020547,2]
[346210010,1734775898182,-1102.35,0.00020547,2]
[346210011,1734775898192,-500.0,0.00020547,2]
[346210012,1734775898201,-500.0,0.00020547,2]
[346210013,1734775898211,-702.98,0.00020547,2]
[346210014,1734775898223,-500.0,0.00020547,2]
[346210015,1734775898233,-517.71,0.00020547,2]
[346210016,1734775898242,-500.0,0.00020547,2]
[346210017,1734775898252,-911.98,0.00020547,2]
[346210018,1734775898261,-500.0,0.00020547,2]
[346210019,1734775898270,-500.0,0.00020547,2]
[346210020,1734775898282,-500.0,0.00020547,2]
[346210021,1734775898291,-249.646144,0.00020547,2]
[346210022,1734775898301,-904.16,0.00020547,2]
[346210023,1734775898310,-516.66,0.00020547,2]
[346210024,1734775898320,-500.0,0.00020547,2]
[346210025,1734775898329,-500.0,0.00020547,2]
[346210026,1734775898338,-500.0,0.00020547,2]
[346210027,1734775898348,-718.98,0.00020547,2]
[346210028,1734775898358,-881.76,0.00020547,2]
[346210029,1734775898367,-500.0,0.00020547,2]
[346210030,1734775898377,-500.0,0.00020547,2]
[346210031,1734775898387,-500.0,0.00020547,2]
[346210032,1734775898396,-500.0,0.00020547,2]
[346210033,1734775898406,-1196.0,0.00020547,2]
[346210034,1734775898416,-604.96,0.00020547,2]
[346210035,1734775898425,-500.0,0.00020547,2]
[346210036,1734775898435,-500.0,0.00020547,2]
[346210037,1734775898444,-500.0,0.00020547,2]
[346210038,1734775898454,-630.9,0.00020547,2]
[346210039,1734775898464,-500.0,0.00020547,2]
[346210040,1734775898473,-500.0,0.00020547,2]
[346210041,1734775898482,-500.0,0.00020547,2]
[346210042,1734775898492,-500.0,0.00020547,2]
[346210043,1734775898502,-500.0,0.00020547,2]
[346210044,1734775898511,-671.72,0.00020547,2]
[346210045,1734775898521,-500.0,0.00020547,2]
[346210046,1734775898533,-500.0,0.00020547,2]
[346210047,1734775898542,-500.0,0.00020547,2]
[346210048,1734775898551,-151.0,0.00020547,2]
[346210049,1734775898561,-836.17,0.00020547,2]
[346210050,1734775898571,-500.0,0.00020547,2]
[346210051,1734775898581,-500.0,0.00020547,2]
[346210052,1734775898590,-500.0,0.00020547,2]
[346210053,1734775898600,-954.09,0.00020547,2]
[346210054,1734775898609,-500.0,0.00020547,2]
[346210055,1734775898619,-500.0,0.00020547,2]
[346210056,1734775898629,-500.0,0.00020547,2]
[346210057,1734775898639,-500.0,0.00020547,2]
[346210058,1734775898650,-500.0,0.00020547,2]
[346210059,1734775898660,-500.0,0.00020547,2]
[346210060,1734775898671,-496.9440114,0.00020547,2]
[346210061,1734775898682,-509.68,0.00020547,2]
[346210062,1734775898692,-796.49,0.00020547,2]
[346210063,1734775898702,-500.0,0.00020547,2]
[346210064,1734775898712,-200.0,0.00020547,2]
[346210065,1734775898723,-613.54,0.00020547,2]
[346210066,1734775898733,-500.0,0.00020547,2]
[346210067,1734775898742,-500.0,0.00020547,2]
[346210068,1734775898752,-500.0,0.00020547,2]
[346210069,1734775898762,-1107.03,0.00020547,2]
[346210070,1734775898772,-632.72,0.00020547,2]
[346210071,1734775898788,-500.0,0.00020547,2]
[346210072,1734775898798,-560.9,0.00020547,2]
[346210073,1734775898807,-502.83747977,0.00020547,2]
[346210074,1734775898817,-500.0,0.00020547,2]
[346210075,1734775898827,-1187.28,0.00020547,2]
[346210076,1734775898837,-500.0,0.00020547,2]
[346210077,1734775898846,-500.0,0.00020547,2]
[346210078,1734775898856,-500.0,0.00020547,2]
[346210079,1734775898866,-500.0,0.00020547,2]
[346210080,1734775898878,-500.0,0.00020547,2]
[346210081,1734775898887,-886.49,0.00020547,2]
[346210082,1734775898896,-500.0,0.00020547,2]
[346210083,1734775898906,-546.544357,0.00020547,2]